[Event "Titled Tuesday Blitz November 08 Late 2022"]
[White "Deac, Bogdan-Daniel"]
[Black "Urazayev, Arystanbek"]
[WhiteFideId "1226380"]
[BlackFideId "13709810"]
[WhiteElo "2648"]
[BlackElo "2441"]
[Result "1-0"]
[Round "11"]
[TimeControl "180+1"]
[Date "2022.11.09"]
[WhiteClock "0:00:20"]
[BlackClock "0:00:20"]

1. e4 {[%clk 0:03:00]}  c5 {[%clk 0:02:59]} 2. Nf3 {[%clk 0:03:01]}  e6 {[%clk 0:02:59]} 3. g3 {[%clk 0:02:59]}  Nc6 {[%clk 0:02:58]} 4. Bg2 {[%clk 0:02:59]}  Nf6 {[%clk 0:02:58]} 5. Qe2 {[%clk 0:02:59]}  e5 {[%clk 0:02:59]} 6. O-O {[%clk 0:02:59]}  Be7 {[%clk 0:02:59]} 7. Nc3 {[%clk 0:02:59]}  O-O {[%clk 0:02:59]} 8. Nd5 {[%clk 0:02:59]}  d6 {[%clk 0:02:59]} 9. c3 {[%clk 0:02:59]}  Be6 {[%clk 0:02:58]} 10. Ne1 {[%clk 0:02:58]}  Rb8 {[%clk 0:02:55]} 11. Nc2 {[%clk 0:02:57]}  b5 {[%clk 0:02:54]} 12. Nce3 {[%clk 0:02:56]}  b4 {[%clk 0:02:48]} 13. f4 {[%clk 0:02:56]}  bxc3 {[%clk 0:02:33]} 14. dxc3 {[%clk 0:02:54]}  Na5 {[%clk 0:02:24]} 15. Nxe7+ {[%clk 0:02:40]}  Qxe7 {[%clk 0:02:24]} 16. f5 {[%clk 0:02:41]}  Bd7 {[%clk 0:02:20]} 17. g4 {[%clk 0:02:41]}  Bc6 {[%clk 0:02:20]} 18. g5 {[%clk 0:02:28]}  Nxe4 {[%clk 0:01:53]} 19. f6 {[%clk 0:02:28]}  Qb7 {[%clk 0:01:52]} 20. Nf5 {[%clk 0:02:24]}  d5 {[%clk 0:01:35]} 21. Bxe4 {[%clk 0:01:53]}  dxe4 {[%clk 0:01:34]} 22. fxg7 {[%clk 0:01:49]}  Rfd8 {[%clk 0:01:31]} 23. Nh6+ {[%clk 0:01:49]}  Kxg7 {[%clk 0:01:32]} 24. Rxf7+ {[%clk 0:01:49]}  Qxf7 {[%clk 0:01:32]} 25. Nxf7 {[%clk 0:01:50]}  Kxf7 {[%clk 0:01:32]} 26. Be3 {[%clk 0:01:44]}  Bb5 {[%clk 0:01:32]} 27. Qh5+ {[%clk 0:01:43]}  Kg8 {[%clk 0:01:28]} 28. g6 {[%clk 0:01:43]}  Rb7 {[%clk 0:01:27]} 29. Qg5 {[%clk 0:01:22]}  Rd6 {[%clk 0:01:17]} 30. gxh7+ {[%clk 0:01:17]}  Kxh7 {[%clk 0:01:18]} 31. Kh1 {[%clk 0:00:52]}  Rg7 {[%clk 0:00:43]} 32. Qf5+ {[%clk 0:00:27]}  Kg8 {[%clk 0:00:43]} 33. Rg1 {[%clk 0:00:22]}  Rxg1+ {[%clk 0:00:34]} 34. Kxg1 {[%clk 0:00:23]}  Nc4 {[%clk 0:00:32]} 35. Bxc5 {[%clk 0:00:22]}  Rd1+ {[%clk 0:00:29]} 36. Kg2 {[%clk 0:00:21]}  e3 {[%clk 0:00:22]} 37. Qg4+ {[%clk 0:00:20]}  Kf7 {[%clk 0:00:20]} 38. Qxd1 {[%clk 0:00:21]}  Nd2 {[%clk 0:00:20]} 39. Bxe3 {[%clk 0:00:20]}  Bc6+ {[%clk 0:00:20]} 40. Kf2 {[%clk 0:00:20]} 1-0


[Site "https://www.chess.com"]

[Event "Titled Tuesday Blitz November 08 Late 2022"]
[White "Diaz Rosas, Julio Cesar"]
[Black "Romero Ruscalleda, Josep"]
[WhiteFideId "5105099"]
[BlackFideId "2231859"]
[WhiteElo "2246"]
[BlackElo "2183"]
[Result "0-1"]
[Round "11"]
[TimeControl "180+1"]
[Date "2022.11.09"]
[WhiteClock "0:00:02"]
[BlackClock "0:00:18"]

1. e4 {[%clk 0:03:00]}  g6 {[%clk 0:03:00]} 2. d4 {[%clk 0:03:00]}  Bg7 {[%clk 0:03:00]} 3. Nc3 {[%clk 0:03:00]}  d6 {[%clk 0:03:01]} 4. Nf3 {[%clk 0:02:58]}  a6 {[%clk 0:03:00]} 5. a4 {[%clk 0:02:58]}  Nc6 {[%clk 0:03:00]} 6. h3 {[%clk 0:02:57]}  e5 {[%clk 0:02:59]} 7. dxe5 {[%clk 0:02:57]}  Nxe5 {[%clk 0:02:59]} 8. Be3 {[%clk 0:02:52]}  Ne7 {[%clk 0:02:55]} 9. Nxe5 {[%clk 0:02:48]}  Bxe5 {[%clk 0:02:53]} 10. Qd2 {[%clk 0:02:45]}  Be6 {[%clk 0:02:50]} 11. Be2 {[%clk 0:02:40]}  Qd7 {[%clk 0:02:48]} 12. f4 {[%clk 0:02:38]}  Bg7 {[%clk 0:02:47]} 13. O-O {[%clk 0:02:36]}  f5 {[%clk 0:02:42]} 14. Bd4 {[%clk 0:02:28]}  Nc6 {[%clk 0:02:27]} 15. Bxg7 {[%clk 0:02:26]}  Qxg7 {[%clk 0:02:27]} 16. exf5 {[%clk 0:02:25]}  Bxf5 {[%clk 0:02:28]} 17. Rae1 {[%clk 0:02:23]}  O-O-O {[%clk 0:02:20]} 18. Nd5 {[%clk 0:02:15]}  Qd4+ {[%clk 0:02:11]} 19. Qxd4 {[%clk 0:02:12]}  Nxd4 {[%clk 0:02:11]} 20. Ne7+ {[%clk 0:02:12]}  Kb8 {[%clk 0:02:10]} 21. Nxf5 {[%clk 0:02:12]}  Nxf5 {[%clk 0:02:10]} 22. Bd3 {[%clk 0:02:10]}  Rdf8 {[%clk 0:01:41]} 23. Bxf5 {[%clk 0:02:02]}  Rxf5 {[%clk 0:01:40]} 24. Re7 {[%clk 0:02:01]}  h6 {[%clk 0:01:40]} 25. Rf2 {[%clk 0:01:53]}  Rhf8 {[%clk 0:01:38]} 26. g3 {[%clk 0:01:48]}  g5 {[%clk 0:01:37]} 27. b3 {[%clk 0:01:34]}  gxf4 {[%clk 0:01:35]} 28. g4 {[%clk 0:01:35]}  R5f7 {[%clk 0:01:33]} 29. Rxf7 {[%clk 0:01:30]}  Rxf7 {[%clk 0:01:33]} 30. Kg2 {[%clk 0:01:31]}  Kc8 {[%clk 0:01:31]} 31. Kf3 {[%clk 0:01:30]}  Kd7 {[%clk 0:01:31]} 32. Re2 {[%clk 0:01:31]}  d5 {[%clk 0:01:29]} 33. Re5 {[%clk 0:01:30]}  Kd6 {[%clk 0:01:28]} 34. Rh5 {[%clk 0:01:26]}  Rf6 {[%clk 0:01:28]} 35. h4 {[%clk 0:01:26]}  c5 {[%clk 0:01:26]} 36. g5 {[%clk 0:01:25]}  hxg5 {[%clk 0:01:26]} 37. hxg5 {[%clk 0:01:26]}  Rf8 {[%clk 0:01:18]} 38. g6 {[%clk 0:01:20]}  Rg8 {[%clk 0:01:09]} 39. Rg5 {[%clk 0:01:18]}  b5 {[%clk 0:01:02]} 40. g7 {[%clk 0:01:09]}  bxa4 {[%clk 0:01:00]} 41. bxa4 {[%clk 0:01:09]}  c4 {[%clk 0:00:48]} 42. Kxf4 {[%clk 0:01:02]}  Ke6 {[%clk 0:00:43]} 43. Rg6+ {[%clk 0:00:57]}  Kf7 {[%clk 0:00:42]} 44. Rxa6 {[%clk 0:00:57]}  Kxg7 {[%clk 0:00:42]} 45. Ke5 {[%clk 0:00:56]}  Rd8 {[%clk 0:00:40]} 46. Kd4 {[%clk 0:00:55]}  Kf7 {[%clk 0:00:37]} 47. a5 {[%clk 0:00:46]}  Ke7 {[%clk 0:00:35]} 48. Rc6 {[%clk 0:00:40]}  Ra8 {[%clk 0:00:31]} 49. Rc5 {[%clk 0:00:38]}  Kd7 {[%clk 0:00:27]} 50. Kxd5 {[%clk 0:00:37]}  Ra6 {[%clk 0:00:27]} 51. Kxc4 {[%clk 0:00:36]}  Kd6 {[%clk 0:00:26]} 52. Kb4 {[%clk 0:00:34]}  Ra8 {[%clk 0:00:24]} 53. c4 {[%clk 0:00:33]}  Ra7 {[%clk 0:00:21]} 54. Rb5 {[%clk 0:00:31]}  Kc6 {[%clk 0:00:21]} 55. Rb6+ {[%clk 0:00:31]}  Kc7 {[%clk 0:00:21]} 56. Kb5 {[%clk 0:00:31]}  Ra8 {[%clk 0:00:21]} 57. c5 {[%clk 0:00:30]}  Rh8 {[%clk 0:00:21]} 58. Rc6+ {[%clk 0:00:19]}  Kb7 {[%clk 0:00:20]} 59. a6+ {[%clk 0:00:19]}  Ka7 {[%clk 0:00:20]} 60. Rc7+ {[%clk 0:00:18]}  Ka8 {[%clk 0:00:20]} 61. Rb7 {[%clk 0:00:16]}  Rh6 {[%clk 0:00:20]} 62. Rh7 {[%clk 0:00:14]}  Rxh7 {[%clk 0:00:20]} 63. Kb6 {[%clk 0:00:09]}  Kb8 {[%clk 0:00:17]} 64. c6 {[%clk 0:00:08]}  Rc7 {[%clk 0:00:17]} 65. Kc5 {[%clk 0:00:03]}  Ka7 {[%clk 0:00:17]} 66. Kd6 {[%clk 0:00:02]}  Kb6 {[%clk 0:00:18]} 0-1


[Site "https://www.chess.com"]

[Event "Titled Tuesday Blitz November 08 Late 2022"]
[White "Dzierzak, Radoslaw"]
[Black "Rodriguez Fontecha, Marcos"]
[WhiteFideId "1161407"]
[BlackFideId "2256576"]
[WhiteElo "2111"]
[BlackElo "2263"]
[Result "1-0"]
[Round "11"]
[TimeControl "180+1"]
[Date "2022.11.09"]
[WhiteClock "0:00:17"]
[BlackClock "0:01:02"]

1. e4 {[%clk 0:03:00]}  e6 {[%clk 0:02:59]} 2. Nf3 {[%clk 0:03:00]}  d5 {[%clk 0:02:59]} 3. Nc3 {[%clk 0:03:01]}  Nf6 {[%clk 0:02:58]} 4. e5 {[%clk 0:03:01]}  Nfd7 {[%clk 0:02:59]} 5. d4 {[%clk 0:03:02]}  c5 {[%clk 0:02:59]} 6. dxc5 {[%clk 0:03:03]}  Nc6 {[%clk 0:03:00]} 7. Bf4 {[%clk 0:03:02]}  Bxc5 {[%clk 0:02:59]} 8. Bd3 {[%clk 0:03:02]}  a6 {[%clk 0:02:58]} 9. h4 {[%clk 0:02:58]}  b5 {[%clk 0:02:58]} 10. h5 {[%clk 0:02:57]}  b4 {[%clk 0:02:58]} 11. Ne2 {[%clk 0:02:55]}  h6 {[%clk 0:02:57]} 12. Rh3 {[%clk 0:02:20]}  Qb6 {[%clk 0:02:57]} 13. Be3 {[%clk 0:02:07]}  Bxe3 {[%clk 0:02:56]} 14. fxe3 {[%clk 0:02:07]}  Qxe3 {[%clk 0:02:54]} 15. Nd4 {[%clk 0:02:01]}  Qg5 {[%clk 0:02:26]} 16. Rg3 {[%clk 0:02:01]}  Qxg3+ {[%clk 0:02:22]} 17. Nxg3 {[%clk 0:02:00]}  Nxd4 {[%clk 0:02:23]} 18. Qg4 {[%clk 0:01:55]}  Nc6 {[%clk 0:02:16]} 19. Qxg7 {[%clk 0:01:54]}  Rf8 {[%clk 0:02:16]} 20. Qxh6 {[%clk 0:01:52]}  Bb7 {[%clk 0:02:11]} 21. Qg5 {[%clk 0:01:48]}  Ncxe5 {[%clk 0:02:07]} 22. O-O-O {[%clk 0:01:39]}  f6 {[%clk 0:02:08]} 23. Bg6+ {[%clk 0:01:33]}  Ke7 {[%clk 0:02:05]} 24. Qf4 {[%clk 0:01:20]}  Rg8 {[%clk 0:02:04]} 25. Qxb4+ {[%clk 0:01:19]}  Kd8 {[%clk 0:01:55]} 26. Qxb7 {[%clk 0:01:17]}  Rb8 {[%clk 0:01:55]} 27. Qxa6 {[%clk 0:01:14]}  Nxg6 {[%clk 0:01:55]} 28. hxg6 {[%clk 0:01:09]}  Rxg6 {[%clk 0:01:56]} 29. Qxe6 {[%clk 0:01:09]}  Rxg3 {[%clk 0:01:55]} 30. Rxd5 {[%clk 0:01:09]}  Rb7 {[%clk 0:01:52]} 31. Qxf6+ {[%clk 0:01:03]}  Ke8 {[%clk 0:01:36]} 32. Qe6+ {[%clk 0:00:50]}  Kd8 {[%clk 0:01:37]} 33. Qf6+ {[%clk 0:00:29]}  Ke8 {[%clk 0:01:20]} 34. Qh8+ {[%clk 0:00:29]}  Kf7 {[%clk 0:01:11]} 35. Qh7+ {[%clk 0:00:18]}  Rg7 {[%clk 0:01:03]} 36. Qf5+ {[%clk 0:00:17]}  Nf6 {[%clk 0:01:02]} 37. Rd6 {[%clk 0:00:17]} 1-0


[Site "https://www.chess.com"]

[Event "Titled Tuesday Blitz November 08 Late 2022"]
[White "Firouzja, Alireza"]
[Black "Dubov, Daniil"]
[WhiteFideId "12573981"]
[BlackFideId "24126055"]
[WhiteElo "2903"]
[BlackElo "2791"]
[Result "1-0"]
[Round "11"]
[TimeControl "180+1"]
[Date "2022.11.09"]
[WhiteClock "0:00:34"]
[BlackClock "0:00:02"]

1. e4 {[%clk 0:03:00]}  e5 {[%clk 0:02:59]} 2. Nf3 {[%clk 0:03:00]}  Nc6 {[%clk 0:03:00]} 3. Bb5 {[%clk 0:03:00]}  a6 {[%clk 0:03:00]} 4. Ba4 {[%clk 0:03:01]}  Nf6 {[%clk 0:03:00]} 5. O-O {[%clk 0:03:00]}  Be7 {[%clk 0:03:00]} 6. d3 {[%clk 0:02:57]}  b5 {[%clk 0:02:59]} 7. Bb3 {[%clk 0:02:57]}  d6 {[%clk 0:03:00]} 8. c3 {[%clk 0:02:58]}  O-O {[%clk 0:02:56]} 9. h3 {[%clk 0:02:58]}  Na5 {[%clk 0:02:50]} 10. Bc2 {[%clk 0:02:58]}  c5 {[%clk 0:02:51]} 11. d4 {[%clk 0:02:59]}  cxd4 {[%clk 0:02:47]} 12. cxd4 {[%clk 0:02:59]}  Bd7 {[%clk 0:02:47]} 13. a3 {[%clk 0:02:50]}  Rc8 {[%clk 0:02:46]} 14. Nc3 {[%clk 0:02:49]}  Nc4 {[%clk 0:02:42]} 15. Ne2 {[%clk 0:02:39]}  exd4 {[%clk 0:02:36]} 16. Nfxd4 {[%clk 0:02:27]}  Re8 {[%clk 0:02:35]} 17. Ng3 {[%clk 0:02:26]}  Bf8 {[%clk 0:02:25]} 18. b3 {[%clk 0:02:26]}  Ne5 {[%clk 0:02:25]} 19. Bb2 {[%clk 0:02:26]}  g6 {[%clk 0:02:03]} 20. Qd2 {[%clk 0:02:24]}  Bg7 {[%clk 0:02:01]} 21. Rad1 {[%clk 0:02:18]}  h5 {[%clk 0:01:55]} 22. f4 {[%clk 0:01:55]}  Nc6 {[%clk 0:01:53]} 23. Nf3 {[%clk 0:01:55]}  h4 {[%clk 0:01:01]} 24. Nxh4 {[%clk 0:01:55]}  Nxe4 {[%clk 0:01:01]} 25. Bxe4 {[%clk 0:01:46]}  Qxh4 {[%clk 0:01:00]} 26. Kh2 {[%clk 0:01:44]}  Bxb2 {[%clk 0:00:43]} 27. Qxb2 {[%clk 0:01:44]}  Qe7 {[%clk 0:00:43]} 28. Qd2 {[%clk 0:01:38]}  Rc7 {[%clk 0:00:33]} 29. f5 {[%clk 0:01:34]}  Ne5 {[%clk 0:00:31]} 30. fxg6 {[%clk 0:01:29]}  fxg6 {[%clk 0:00:31]} 31. Qxd6 {[%clk 0:01:20]}  Bc6 {[%clk 0:00:31]} 32. Bxg6 {[%clk 0:01:12]}  Rd7 {[%clk 0:00:10]} 33. Qxe7 {[%clk 0:01:04]}  Rexe7 {[%clk 0:00:11]} 34. Bf5 {[%clk 0:01:04]}  Rc7 {[%clk 0:00:06]} 35. Rd6 {[%clk 0:01:04]}  Nf7 {[%clk 0:00:05]} 36. Rg6+ {[%clk 0:01:03]}  Kf8 {[%clk 0:00:05]} 37. Be6 {[%clk 0:01:01]}  Bb7 {[%clk 0:00:05]} 38. Rgf6 {[%clk 0:00:58]}  Ke8 {[%clk 0:00:03]} 39. Bxf7+ {[%clk 0:00:42]}  Rxf7 {[%clk 0:00:03]} 40. Rxf7 {[%clk 0:00:43]}  Rxf7 {[%clk 0:00:03]} 41. Rxf7 {[%clk 0:00:44]}  Kxf7 {[%clk 0:00:04]} 42. Nf5 {[%clk 0:00:44]}  Ke6 {[%clk 0:00:04]} 43. g4 {[%clk 0:00:44]}  Ke5 {[%clk 0:00:04]} 44. Kg3 {[%clk 0:00:42]}  a5 {[%clk 0:00:04]} 45. b4 {[%clk 0:00:37]}  axb4 {[%clk 0:00:04]} 46. axb4 {[%clk 0:00:38]}  Be4 {[%clk 0:00:04]} 47. h4 {[%clk 0:00:37]}  Bd3 {[%clk 0:00:02]} 48. h5 {[%clk 0:00:37]}  Be4 {[%clk 0:00:02]} 49. h6 {[%clk 0:00:35]}  Kf6 {[%clk 0:00:02]} 50. h7 {[%clk 0:00:34]} 1-0


[Site "https://www.chess.com"]

[Event "Titled Tuesday Blitz November 08 Late 2022"]
[White "Floresvillar Gonzalez, Luis Migu"]
[Black "Burke, Paul"]
[WhiteFideId "5100542"]
[BlackFideId "2605767"]
[WhiteElo "2040"]
[BlackElo "1827"]
[Result "1/2-1/2"]
[Round "11"]
[TimeControl "180+1"]
[Date "2022.11.09"]
[WhiteClock "0:01:40"]
[BlackClock "0:01:24"]

1. e4 {[%clk 0:02:55]}  e5 {[%clk 0:02:59]} 2. Nf3 {[%clk 0:02:54]}  Nc6 {[%clk 0:02:59]} 3. d4 {[%clk 0:02:54]}  exd4 {[%clk 0:02:58]} 4. Bc4 {[%clk 0:02:54]}  Be7 {[%clk 0:02:57]} 5. c3 {[%clk 0:02:52]}  d6 {[%clk 0:02:56]} 6. cxd4 {[%clk 0:02:50]}  Nf6 {[%clk 0:02:56]} 7. Nc3 {[%clk 0:02:46]}  O-O {[%clk 0:02:56]} 8. O-O {[%clk 0:02:45]}  Nxe4 {[%clk 0:02:54]} 9. Nxe4 {[%clk 0:02:42]}  d5 {[%clk 0:02:55]} 10. Bd3 {[%clk 0:02:39]}  dxe4 {[%clk 0:02:54]} 11. Bxe4 {[%clk 0:02:39]}  Bg4 {[%clk 0:02:45]} 12. d5 {[%clk 0:02:39]}  Ne5 {[%clk 0:02:37]} 13. h3 {[%clk 0:02:39]}  Nxf3+ {[%clk 0:02:32]} 14. Bxf3 {[%clk 0:02:38]}  Bxf3 {[%clk 0:02:32]} 15. Qxf3 {[%clk 0:02:38]}  Bf6 {[%clk 0:02:32]} 16. Rd1 {[%clk 0:02:35]}  Qd6 {[%clk 0:02:21]} 17. Bf4 {[%clk 0:02:33]}  Qb6 {[%clk 0:02:20]} 18. Rab1 {[%clk 0:02:28]}  Rad8 {[%clk 0:02:16]} 19. Rd2 {[%clk 0:02:23]}  Rd7 {[%clk 0:02:16]} 20. Rbd1 {[%clk 0:02:22]}  Rfd8 {[%clk 0:02:16]} 21. b3 {[%clk 0:02:22]}  Qa5 {[%clk 0:01:57]} 22. Kh2 {[%clk 0:02:11]}  Qc3 {[%clk 0:01:49]} 23. Qxc3 {[%clk 0:02:08]}  Bxc3 {[%clk 0:01:48]} 24. Rd3 {[%clk 0:02:07]}  Ba5 {[%clk 0:01:40]} 25. a3 {[%clk 0:02:04]}  Bb6 {[%clk 0:01:40]} 26. a4 {[%clk 0:01:59]}  Bxf2 {[%clk 0:01:36]} 27. b4 {[%clk 0:01:56]}  a6 {[%clk 0:01:32]} 28. b5 {[%clk 0:01:52]}  axb5 {[%clk 0:01:30]} 29. axb5 {[%clk 0:01:52]}  Bb6 {[%clk 0:01:30]} 30. d6 {[%clk 0:01:42]}  cxd6 {[%clk 0:01:27]} 31. Rxd6 {[%clk 0:01:42]}  Rxd6 {[%clk 0:01:26]} 32. Rxd6 {[%clk 0:01:41]}  Rxd6 {[%clk 0:01:24]} 33. Bxd6 {[%clk 0:01:40]}  f6 {[%clk 0:01:24]} 1/2-1/2


[Site "https://www.chess.com"]

[Event "Titled Tuesday Blitz November 08 Late 2022"]
[White "Gritsenko, Nikolai"]
[Black "Janaszak, Dawid"]
[WhiteFideId "14112493"]
[BlackFideId "1119206"]
[WhiteElo "2389"]
[BlackElo "2226"]
[Result "0-1"]
[Round "11"]
[TimeControl "180+1"]
[Date "2022.11.09"]
[WhiteClock "0:00:01"]
[BlackClock "0:00:06"]

1. d4 {[%clk 0:03:00]}  Nf6 {[%clk 0:02:57]} 2. Bg5 {[%clk 0:03:00]}  d5 {[%clk 0:02:56]} 3. Nd2 {[%clk 0:02:59]}  Bf5 {[%clk 0:02:48]} 4. e3 {[%clk 0:02:59]}  e6 {[%clk 0:02:43]} 5. c4 {[%clk 0:02:51]}  c6 {[%clk 0:02:41]} 6. Ngf3 {[%clk 0:02:45]}  Bd6 {[%clk 0:02:41]} 7. Qb3 {[%clk 0:02:42]}  Qc8 {[%clk 0:02:36]} 8. Bd3 {[%clk 0:02:35]}  Bxd3 {[%clk 0:02:30]} 9. Qxd3 {[%clk 0:02:33]}  Nbd7 {[%clk 0:02:30]} 10. O-O {[%clk 0:02:27]}  O-O {[%clk 0:02:29]} 11. Rac1 {[%clk 0:02:26]}  h6 {[%clk 0:02:26]} 12. Bh4 {[%clk 0:02:24]}  a5 {[%clk 0:02:19]} 13. a3 {[%clk 0:02:22]}  Qb8 {[%clk 0:02:17]} 14. Rfe1 {[%clk 0:02:19]}  Re8 {[%clk 0:02:16]} 15. e4 {[%clk 0:02:05]}  dxe4 {[%clk 0:02:15]} 16. Nxe4 {[%clk 0:02:04]}  Nxe4 {[%clk 0:02:15]} 17. Qxe4 {[%clk 0:01:55]}  a4 {[%clk 0:02:08]} 18. Ne5 {[%clk 0:01:24]}  Nxe5 {[%clk 0:01:54]} 19. dxe5 {[%clk 0:01:23]}  Bc5 {[%clk 0:01:54]} 20. Rc3 {[%clk 0:01:13]}  Qa7 {[%clk 0:01:51]} 21. Qg4 {[%clk 0:00:52]}  Bf8 {[%clk 0:01:22]} 22. Bf6 {[%clk 0:00:39]}  Qa5 {[%clk 0:01:08]} 23. Ree3 {[%clk 0:00:21]}  Kh7 {[%clk 0:00:54]} 24. Rg3 {[%clk 0:00:17]}  g6 {[%clk 0:00:52]} 25. h4 {[%clk 0:00:16]}  h5 {[%clk 0:00:48]} 26. Qe4 {[%clk 0:00:13]}  Bh6 {[%clk 0:00:38]} 27. Rcf3 {[%clk 0:00:11]}  Qc7 {[%clk 0:00:37]} 28. Bg5 {[%clk 0:00:10]}  Bg7 {[%clk 0:00:35]} 29. Bf6 {[%clk 0:00:10]}  Bh6 {[%clk 0:00:35]} 30. Bg5 {[%clk 0:00:10]}  Bg7 {[%clk 0:00:35]} 31. Rh3 {[%clk 0:00:10]}  Rf8 {[%clk 0:00:32]} 32. Bf6 {[%clk 0:00:08]}  Rad8 {[%clk 0:00:26]} 33. g4 {[%clk 0:00:08]}  Rd1+ {[%clk 0:00:25]} 34. Kg2 {[%clk 0:00:07]}  hxg4 {[%clk 0:00:16]} 35. Qxg4 {[%clk 0:00:06]}  Bxf6 {[%clk 0:00:16]} 36. exf6 {[%clk 0:00:06]}  Qe5 {[%clk 0:00:15]} 37. h5 {[%clk 0:00:06]}  g5 {[%clk 0:00:14]} 38. h6 {[%clk 0:00:06]}  Rg8 {[%clk 0:00:14]} 39. Rhg3 {[%clk 0:00:05]}  Rg6 {[%clk 0:00:14]} 40. Qh5 {[%clk 0:00:04]}  Qe1 {[%clk 0:00:14]} 41. Re3 {[%clk 0:00:02]}  Qf1+ {[%clk 0:00:14]} 42. Kf3 {[%clk 0:00:03]}  Qxc4 {[%clk 0:00:14]} 43. Kg2 {[%clk 0:00:03]}  Qd5+ {[%clk 0:00:14]} 44. Ref3 {[%clk 0:00:02]}  Rd3 {[%clk 0:00:13]} 45. Qg4 {[%clk 0:00:02]}  e5 {[%clk 0:00:11]} 46. Kh2 {[%clk 0:00:02]}  Rxf3 {[%clk 0:00:10]} 47. Rxf3 {[%clk 0:00:01]}  Rxh6+ {[%clk 0:00:10]} 48. Kg2 {[%clk 0:00:02]}  e4 {[%clk 0:00:09]} 49. Rf5 {[%clk 0:00:01]}  Qe6 {[%clk 0:00:07]} 50. Kf1 {[%clk 0:00:01]}  e3 {[%clk 0:00:07]} 51. Qxg5 {[%clk 0:00:01]}  e2+ {[%clk 0:00:06]} 0-1


[Site "https://www.chess.com"]

[Event "Titled Tuesday Blitz November 08 Late 2022"]
[White "Hajiyev, Kanan"]
[Black "Ardila, Oscar Humberto"]
[WhiteFideId "13404148"]
[BlackFideId "4404742"]
[WhiteElo "2118"]
[BlackElo "1959"]
[Result "0-1"]
[Round "11"]
[TimeControl "180+1"]
[Date "2022.11.09"]
[WhiteClock "0:00:27"]
[BlackClock "0:00:13"]

1. d4 {[%clk 0:02:35]}  Nf6 {[%clk 0:02:57]} 2. c4 {[%clk 0:02:35]}  e6 {[%clk 0:02:58]} 3. Nf3 {[%clk 0:02:35]}  Bb4+ {[%clk 0:02:57]} 4. Bd2 {[%clk 0:02:35]}  Qe7 {[%clk 0:02:58]} 5. Nc3 {[%clk 0:02:36]}  Nc6 {[%clk 0:02:57]} 6. a3 {[%clk 0:02:35]}  Bxc3 {[%clk 0:02:57]} 7. Bxc3 {[%clk 0:02:35]}  O-O {[%clk 0:02:57]} 8. Qc2 {[%clk 0:02:35]}  d6 {[%clk 0:02:57]} 9. e4 {[%clk 0:02:35]}  e5 {[%clk 0:02:58]} 10. d5 {[%clk 0:02:36]}  Nb8 {[%clk 0:02:57]} 11. Bd3 {[%clk 0:02:36]}  Bg4 {[%clk 0:02:57]} 12. c5 {[%clk 0:02:34]}  Bxf3 {[%clk 0:02:56]} 13. cxd6 {[%clk 0:02:33]}  cxd6 {[%clk 0:02:55]} 14. gxf3 {[%clk 0:02:33]}  Nbd7 {[%clk 0:02:53]} 15. Rg1 {[%clk 0:02:33]}  Nh5 {[%clk 0:02:52]} 16. Rg4 {[%clk 0:02:28]}  Nf4 {[%clk 0:02:50]} 17. O-O-O {[%clk 0:02:17]}  Rac8 {[%clk 0:02:49]} 18. Rdg1 {[%clk 0:02:15]}  g6 {[%clk 0:02:48]} 19. Kb1 {[%clk 0:02:15]}  Nc5 {[%clk 0:02:46]} 20. Bf1 {[%clk 0:02:14]}  Rc7 {[%clk 0:02:35]} 21. Qd2 {[%clk 0:02:05]}  Nb3 {[%clk 0:02:22]} 22. Qe3 {[%clk 0:01:59]}  Rfc8 {[%clk 0:02:14]} 23. Ka2 {[%clk 0:01:44]}  Rxc3 {[%clk 0:01:41]} 24. bxc3 {[%clk 0:01:39]}  Nc5 {[%clk 0:01:39]} 25. h4 {[%clk 0:01:15]}  h5 {[%clk 0:01:37]} 26. Rxf4 {[%clk 0:01:14]}  exf4 {[%clk 0:01:36]} 27. Qxf4 {[%clk 0:01:15]}  Na4 {[%clk 0:01:32]} 28. c4 {[%clk 0:01:12]}  b5 {[%clk 0:01:29]} 29. Bd3 {[%clk 0:00:45]}  bxc4 {[%clk 0:01:27]} 30. Bc2 {[%clk 0:00:45]}  Nc3+ {[%clk 0:01:25]} 31. Kb2 {[%clk 0:00:45]}  Nb5 {[%clk 0:01:20]} 32. e5 {[%clk 0:00:39]}  Qxe5+ {[%clk 0:01:19]} 33. Qxe5 {[%clk 0:00:38]}  dxe5 {[%clk 0:01:20]} 34. Re1 {[%clk 0:00:37]}  c3+ {[%clk 0:01:10]} 35. Ka2 {[%clk 0:00:33]}  Nd4 {[%clk 0:01:10]} 36. Be4 {[%clk 0:00:28]}  f5 {[%clk 0:01:06]} 37. Bd3 {[%clk 0:00:28]}  Nxf3 {[%clk 0:01:05]} 38. Rb1 {[%clk 0:00:28]}  e4 {[%clk 0:01:03]} 39. Ba6 {[%clk 0:00:25]}  Rd8 {[%clk 0:00:49]} 40. Rc1 {[%clk 0:00:25]}  Nxh4 {[%clk 0:00:44]} 41. Rxc3 {[%clk 0:00:24]}  Nf3 {[%clk 0:00:41]} 42. Rc7 {[%clk 0:00:24]}  h4 {[%clk 0:00:38]} 43. Bf1 {[%clk 0:00:24]}  Rd6 {[%clk 0:00:28]} 44. Rc6 {[%clk 0:00:22]}  Rd8 {[%clk 0:00:20]} 45. Rxg6+ {[%clk 0:00:21]}  Kf7 {[%clk 0:00:20]} 46. Ra6 {[%clk 0:00:19]}  Ke7 {[%clk 0:00:18]} 47. Rxa7+ {[%clk 0:00:19]}  Kd6 {[%clk 0:00:18]} 48. Rf7 {[%clk 0:00:15]}  Ke5 {[%clk 0:00:17]} 49. Bc4 {[%clk 0:00:07]}  h3 {[%clk 0:00:17]} 50. Rh7 {[%clk 0:00:06]}  h2 {[%clk 0:00:17]} 51. a4 {[%clk 0:00:07]}  Kd4 {[%clk 0:00:17]} 52. Bb3 {[%clk 0:00:07]}  e3 {[%clk 0:00:16]} 53. fxe3+ {[%clk 0:00:06]}  Kxe3 {[%clk 0:00:17]} 54. a5 {[%clk 0:00:07]}  f4 {[%clk 0:00:15]} 55. a6 {[%clk 0:00:07]}  Ra8 {[%clk 0:00:15]} 56. Kb2 {[%clk 0:00:05]}  Ra7 {[%clk 0:00:14]} 57. Rh5 {[%clk 0:00:03]}  Rxa6 {[%clk 0:00:14]} 58. d6 {[%clk 0:00:03]}  Rxd6 {[%clk 0:00:14]} 59. Kc3 {[%clk 0:00:04]}  Rd3+ {[%clk 0:00:14]} 60. Kc2 {[%clk 0:00:04]}  Nd4+ {[%clk 0:00:13]} 61. Kc1 {[%clk 0:00:03]}  Nxb3+ {[%clk 0:00:13]} 62. Kc2 {[%clk 0:00:04]}  Nd4+ {[%clk 0:00:13]} 63. Kc1 {[%clk 0:00:05]}  Nf3 {[%clk 0:00:14]} 64. Rh3 {[%clk 0:00:05]}  Ra3 {[%clk 0:00:12]} 65. Kb2 {[%clk 0:00:05]}  Rd3 {[%clk 0:00:12]} 66. Rh8 {[%clk 0:00:06]}  Rd2+ {[%clk 0:00:12]} 67. Kc3 {[%clk 0:00:07]}  Rd7 {[%clk 0:00:10]} 68. Re8+ {[%clk 0:00:08]}  Kf2 {[%clk 0:00:10]} 69. Rh8 {[%clk 0:00:08]}  Kg2 {[%clk 0:00:10]} 70. Kc4 {[%clk 0:00:09]}  h1=Q {[%clk 0:00:10]} 71. Rxh1 {[%clk 0:00:10]}  Kxh1 {[%clk 0:00:10]} 72. Kc5 {[%clk 0:00:11]}  Kg1 {[%clk 0:00:11]} 73. Kc6 {[%clk 0:00:12]}  Rd2 {[%clk 0:00:10]} 74. Kc5 {[%clk 0:00:12]}  Kf2 {[%clk 0:00:11]} 75. Kc4 {[%clk 0:00:13]}  Ke3 {[%clk 0:00:11]} 76. Kc3 {[%clk 0:00:14]}  Ne5 {[%clk 0:00:12]} 77. Kb3 {[%clk 0:00:14]}  f3 {[%clk 0:00:13]} 78. Kc3 {[%clk 0:00:15]}  f2 {[%clk 0:00:13]} 79. Kb3 {[%clk 0:00:15]}  f1=Q {[%clk 0:00:14]} 80. Ka3 {[%clk 0:00:16]}  Nf7 {[%clk 0:00:14]} 81. Kb3 {[%clk 0:00:17]}  Nh8 {[%clk 0:00:15]} 82. Kc3 {[%clk 0:00:18]}  Ng6 {[%clk 0:00:15]} 83. Kb4 {[%clk 0:00:18]}  Nh4 {[%clk 0:00:16]} 84. Kc3 {[%clk 0:00:19]}  Ng2 {[%clk 0:00:16]} 85. Kb3 {[%clk 0:00:19]}  Nf4 {[%clk 0:00:16]} 86. Kc3 {[%clk 0:00:20]}  Nd5+ {[%clk 0:00:16]} 87. Kb3 {[%clk 0:00:21]}  Ne7 {[%clk 0:00:17]} 88. Ka3 {[%clk 0:00:22]}  Nc8 {[%clk 0:00:17]} 89. Kb3 {[%clk 0:00:23]}  Na7 {[%clk 0:00:18]} 90. Kc3 {[%clk 0:00:24]}  Nc6 {[%clk 0:00:18]} 91. Kb3 {[%clk 0:00:25]}  Na5+ {[%clk 0:00:18]} 92. Kc3 {[%clk 0:00:26]}  Qc1+ {[%clk 0:00:16]} 93. Kb4 {[%clk 0:00:26]}  Rb2+ {[%clk 0:00:16]} 94. Ka3 {[%clk 0:00:27]}  Nc4+ {[%clk 0:00:15]} 95. Ka4 {[%clk 0:00:27]}  Qc2# {[%clk 0:00:13]} 0-1


[Site "https://www.chess.com"]